bitfinex/quotes_SOLUSD_20240726
["timestamp","ask_amount","ask_price","bid_price","bid_amount"]
[1721954774795,5.7574,173.69,173.56,45.0]
[1721954775019,5.7577,173.68,173.56,45.0]
[1721954775204,16.1925,173.7,173.56,45.0]
[1721954775399,21.9495,173.7,173.57,1.15190289]
[1721954775929,21.9495,173.7,173.56,45.0]
[1721954775930,16.1925,173.7,173.56,45.0]
[1721954776224,31.5577,173.68,173.56,45.0]
[1721954776415,5.758,173.67,173.56,45.0]
[1721954776616,25.8,173.68,173.55,20.0]
[1721954776922,5.7584,173.66,173.53,21.15201941]
[1721954777110,5.7581,173.67,173.53,21.15201941]
[1721954777303,5.7588,173.65,173.53,21.15201941]
[1721954777501,5.7582,173.67,173.53,21.15201941]
[1721954777727,25.8,173.68,173.53,21.15201941]
[1721954778023,25.8,173.68,173.54,45.0]
[1721954778197,25.8,173.68,173.55,1.15209848]
[1721954778594,25.8,173.68,173.54,45.0]
[1721954778801,6.4436,173.64,173.53,20.0]
[1721954779004,25.8,173.62,173.46,6.22]
[1721954779604,5.7609,173.59,173.46,6.22]
[1721954779818,31.5609,173.59,173.46,6.22]
[1721954780524,31.5607,173.59,173.46,6.22]
[1721954780916,5.761,173.58,173.46,6.22]
[1721954781313,25.8,173.59,173.47,1.15260097]
[1721954781909,25.8,173.62,173.47,1.15260097]
[1721954782112,31.5598,173.62,173.47,1.15260097]
[1721954782300,25.8,173.62,173.47,46.15260097]
[1721954782506,31.5597,173.62,173.47,46.15260097]
[1721954782825,25.8,173.62,173.48,20.0]
[1721954783011,25.8,173.62,173.49,45.0]
[1721954783218,5.7611,173.58,173.49,45.0]
[1721954783521,25.8,173.62,173.49,46.15253628]
[1721954783904,31.5597,173.62,173.49,46.15253628]
[1721954784103,5.7601,173.61,173.49,46.15253628]
[1721954784302,5.7605,173.6,173.49,46.15253628]
[1721954784521,15.6692,173.63,173.49,46.15253628]
[1721954784522,15.6692,173.63,173.5,1.15240421]
[1721954784716,25.8,173.62,173.5,1.15240421]
[1721954784917,25.8,173.62,173.5,1.15254375]
[1721954785124,25.8,173.62,173.49,45.0]
[1721954785306,25.8,173.62,173.47,1.15252791]
[1721954785620,25.8,173.62,173.47,21.15252791]
[1721954786226,21.4288,173.63,173.49,25.8]
[1721954786227,15.6692,173.63,173.49,25.8]
[1721954786412,15.6692,173.63,173.52,25.8]
[1721954786614,15.6692,173.63,173.53,45.0]
[1721954786808,5.76,173.62,173.53,45.0]
[1721954787311,5.7609,173.59,173.53,45.0]
[1721954787808,25.8,173.62,173.53,45.0]
[1721954788018,5.7614,173.57,173.53,45.0]
[1721954788206,5.7614,173.57,173.47,20.0]
[1721954788406,5.7617,173.56,173.46,6.22]
[1721954789133,12.3017,173.58,173.46,6.22]
[1721954789512,6.5407,173.58,173.46,6.22]
[1721954789829,6.5407,173.58,173.42,6.4465]
[1721954789830,5.7624,173.54,173.42,6.4465]
[1721954790029,5.763,173.52,173.42,6.4465]
[1721954790624,5.7627,173.53,173.42,6.4465]
[1721954791130,5.7637,173.5,173.38,6.2533]
[1721954791428,25.8,173.53,173.38,6.2533]
[1721954791429,5.764,173.49,173.38,6.2533]
[1721954791905,5.7645,173.48,173.38,6.2533]
[1721954792619,5.7648,173.47,173.38,6.2533]
[1721954792805,5.7654,173.45,173.35,1.1531975]
[1721954793011,5.765,173.46,173.34,33.20659605]
[1721954793229,5.765,173.46,173.34,39.23938313]
[1721954793417,5.7645,173.48,173.34,39.23938313]
[1721954793619,6.01,173.49,173.34,39.23938313]
[1721954793817,25.8,173.5,173.34,39.23938313]
[1721954794118,25.8,173.49,173.34,13.43938313]
[1721954794330,45.2741,173.52,173.34,7.40659605]
[1721954794531,5.7645,173.48,173.34,7.40659605]
[1721954794717,5.7647,173.47,173.35,20.0]
[1721954794915,5.7653,173.45,173.36,1.15320711]
[1721954795119,65.2741,173.52,173.35,20.0]
[1721954795436,5.7658,173.44,173.35,20.0]
[1721954795611,5.7658,173.44,173.34,6.2533]
[1721954795612,36.1448,173.46,173.3,6.03272968]
[1721954795815,29.14,173.44,173.29,6.6139]
[1721954796016,5.7666,173.42,173.29,6.6139]
[1721954796315,5.7669,173.41,173.29,6.6139]
[1721954796518,29.14,173.44,173.29,6.6139]
[1721954796721,5.7657,173.44,173.3,1.15371904]
[1721954797131,5.7654,173.45,173.3,1.15371904]
[1721954797313,21.91,173.46,173.3,1.15371904]
[1721954797518,5.7653,173.45,173.3,21.15371904]
[1721954797839,5.7656,173.44,173.31,45.0]
[1721954798038,5.7656,173.44,173.32,20.0]
[1721954798339,5.766,173.43,173.33,45.0]
[1721954798534,5.7663,173.42,173.33,45.0]
[1721954798718,5.7667,173.41,173.33,45.0]
[1721954798915,63.5542,173.44,173.29,6.6139]
[1721954799315,5.7673,173.39,173.29,6.6139]
[1721954800037,29.14,173.44,173.29,6.6139]
[1721954800420,5.767,173.4,173.29,6.6139]
[1721954800623,5.7667,173.41,173.29,6.6139]
[1721954800824,5.767,173.4,173.3,20.0]
[1721954801017,5.7674,173.39,173.3,20.0]
[1721954801212,5.767,173.4,173.3,20.0]
[1721954801430,5.7667,173.41,173.3,20.0]
[1721954801741,5.7663,173.43,173.3,21.15365874]
[1721954801951,5.7663,173.42,173.3,20.0]
[1721954802127,29.14,173.44,173.3,20.0]
[1721954802327,5.7669,173.41,173.3,20.0]
[1721954802522,5.7671,173.4,173.3,20.0]
[1721954803039,29.14,173.44,173.3,21.1538499]
[1721954803341,29.14,173.44,173.3,20.0]
[1721954803511,5.7666,173.42,173.3,20.0]
[1721954803719,29.14,173.44,173.3,20.0]
[1721954803940,5.7673,173.39,173.31,45.0]
[1721954804139,29.14,173.44,173.29,6.6139]
[1721954804344,29.14,173.44,173.3,20.0]
[1721954804345,5.7666,173.41,173.3,20.0]
[1721954804532,49.14,173.44,173.29,6.6139]
[1721954804852,20.0,173.42,173.29,6.6139]
[1721954805054,5.7681,173.37,173.29,6.6139]
[1721954805643,5.7681,173.37,173.26,16.79795]
[1721954805644,5.7685,173.36,173.26,16.79795]
[1721954805940,5.7685,173.36,173.26,0.82015]
[1721954806336,15.3929,173.37,173.26,0.82015]
[1721954806729,15.3929,173.37,173.26,20.82015]
[1721954807628,15.3929,173.37,173.27,45.0]
[1721954808320,21.1609,173.37,173.27,45.0]
[1721954809244,15.3929,173.37,173.26,0.82015]
[1721954809624,5.769,173.34,173.26,0.82015]
[1721954810133,15.3929,173.37,173.26,0.82015]
[1721954810134,63.5615,173.36,173.26,0.82015]
[1721954810335,5.7706,173.29,173.26,0.82015]
[1721954810535,83.5615,173.36,173.26,0.82015]
[1721954811125,5.7699,173.32,173.26,0.82015]
[1721954811540,5.7701,173.31,173.26,0.82015]
[1721954813138,63.5615,173.36,173.26,0.82015]
[1721954813538,5.7703,173.3,173.26,0.82015]
[1721954813741,5.77,173.31,173.26,0.82015]
[1721954814123,63.5612,173.36,173.26,0.82015]
[1721954814330,5.7697,173.32,173.26,0.82015]
[1721954816543,5.77,173.31,173.26,0.82015]
[1721954817329,5.7693,173.33,173.26,0.82015]
[1721954817536,5.7687,173.35,173.26,0.82015]
[1721954817864,31.7184,173.36,173.26,0.82015]
[1721954818232,25.95,173.36,173.26,0.82015]
[1721954818531,5.7694,173.33,173.26,0.82015]
[1721954819043,5.7698,173.32,173.26,0.82015]
[1721954819461,5.7693,173.34,173.26,0.82015]
[1721954819751,15.3929,173.37,173.27,6.0135]
[1721954819960,406.45,173.39,173.28,45.0]
[1721954820167,5.7684,173.36,173.28,45.0]
[1721954820368,406.45,173.39,173.28,45.0]
[1721954821093,31.7176,173.39,173.28,45.0]
[1721954821366,5.7677,173.38,173.28,45.0]
[1721954821535,5.768,173.37,173.28,45.0]
[1721954821868,5.7674,173.39,173.28,45.0]
[1721954822040,15.6834,173.41,173.28,46.15389733]
[1721954822236,15.6834,173.41,173.29,20.0]
[1721954822237,5.767,173.4,173.29,20.0]
[1721954822429,5.767,173.4,173.3,45.0]
[1721954823839,15.6834,173.41,173.3,45.0]
[1721954824241,25.95,173.39,173.3,45.0]
[1721954824438,5.7684,173.36,173.27,6.0135]
[1721954824751,25.95,173.39,173.27,6.0135]
[1721954824948,31.7173,173.39,173.27,6.0135]
[1721954825539,5.7676,173.38,173.27,6.0135]
[1721954826046,5.7676,173.38,173.28,45.0]
[1721954826247,5.768,173.37,173.28,45.0]
[1721954826451,5.7683,173.36,173.28,45.0]
[1721954827073,25.95,173.35,173.27,6.0135]
[1721954827384,5.7685,173.36,173.27,6.0135]
[1721954827749,5.768,173.37,173.27,6.0135]
[1721954828362,5.7684,173.36,173.28,45.0]
[1721954829049,25.95,173.38,173.28,45.0]
[1721954829261,5.7677,173.38,173.28,45.0]
[1721954830075,5.7686,173.36,173.28,45.0]
[1721954830279,5.7694,173.33,173.27,6.0135]
[1721954830479,5.7699,173.32,173.27,6.0135]
[1721954830785,5.7693,173.33,173.27,6.0135]
[1721954831575,25.95,173.35,173.27,6.0135]
[1721954831782,5.7692,173.34,173.28,45.0]
[1721954831955,5.7693,173.33,173.28,45.0]
[1721954832268,25.95,173.35,173.27,6.0135]
[1721954832469,5.7694,173.33,173.27,6.0135]
[1721954832657,25.95,173.35,173.27,6.0135]
[1721954832971,25.95,173.35,173.26,0.82015]
[1721954833176,5.7697,173.32,173.26,0.82015]
[1721954833557,5.7693,173.33,173.26,0.82015]
[1721954834171,5.7697,173.32,173.26,0.82015]
[1721954834482,5.7702,173.31,173.26,0.82015]
[1721954834854,202.28794611,173.4,173.26,0.82015]
[1721954835076,25.95,173.33,173.26,0.82015]
[1721954835892,5.7693,173.33,173.26,6.59145]
[1721954836062,5.77,173.32,173.27,45.0]
[1721954836777,5.7697,173.32,173.27,45.0]
[1721954837078,5.7694,173.33,173.27,50.7712]
[1721954837483,5.7698,173.32,173.27,45.0]
[1721954837665,5.7698,173.32,173.26,45.82015]
[1721954837983,5.7698,173.32,173.26,51.59155]
[1721954838481,25.95,173.33,173.26,6.59155]
[1721954838676,25.95,173.33,173.27,5.7713]
[1721954838862,31.7195,173.33,173.27,5.7713]
[1721954839263,15.8219,173.34,173.27,20.1986]
[1721954839471,15.8219,173.34,173.29,5.7704]
[1721954839871,25.95,173.36,173.29,14.4261]
[1721954840075,25.95,173.36,173.3,5.7702]
[1721954840259,5.7694,173.33,173.26,15.24905]
[1721954840458,5.7691,173.34,173.28,5.7709]
[1721954840678,5.7693,173.33,173.29,45.0]
[1721954840978,16.636,173.38,173.32,5.7693]
[1721954841285,5.768,173.37,173.33,45.0]
[1721954841462,5.769,173.34,173.29,45.0]
[1721954841770,14.4203,173.37,173.29,45.0]
[1721954842078,14.4203,173.37,173.28,45.0]
[1721954842491,5.7694,173.33,173.28,50.7709]
[1721954842659,16.636,173.38,173.3,5.77]
[1721954842865,5.7685,173.36,173.31,45.0]
[1721954843174,5.7687,173.35,173.31,45.0]
[1721954843589,5.7687,173.35,173.3,45.0]
[1721954843969,16.636,173.38,173.3,45.0]
[1721954843970,5.769,173.34,173.3,45.0]
[1721954844389,31.0557,173.38,173.3,45.0]
[1721954844593,20.0,173.37,173.29,45.0]
[1721954844777,20.0,173.37,173.28,45.0]
[1721954844971,25.95,173.34,173.28,45.0]
[1721954845285,5.7701,173.31,173.27,45.0]
[1721954845587,5.7701,173.31,173.26,15.24905]
[1721954845789,5.7697,173.32,173.26,21.02065]
[1721954845986,5.77,173.31,173.26,21.02065]
[1721954846170,5.7697,173.32,173.26,21.02065]
[1721954846780,5.7697,173.32,173.27,45.0]
[1721954848769,25.95,173.34,173.29,5.7706]
[1721954848984,31.719,173.34,173.3,45.0]
[1721954849387,25.95,173.34,173.3,50.7702]
[1721954849589,6.3603,173.36,173.3,50.7702]
[1721954849778,25.95,173.37,173.3,65.1953]
[1721954849978,5.7685,173.36,173.3,65.1953]
[1721954850183,5.7693,173.33,173.3,45.0]
[1721954850382,45.95,173.37,173.3,45.0]
[1721954850580,5.769,173.34,173.3,45.0]
[1721954850874,25.95,173.37,173.29,50.7704]
[1721954851188,10.40412589,173.36,173.3,14.4254]
[1721954851396,25.95,173.37,173.31,45.0]
[1721954851578,5.18103389,173.38,173.33,5.7691]
[1721954851775,15.8368,173.43,173.34,45.0]
[1721954851776,46.96783389,173.43,173.34,45.0]
[1721954851979,5.18103389,173.43,173.34,45.0]
[1721954852191,272.4368,173.47,173.39,5.767]
[1721954852192,16.16646232,173.45,173.39,5.767]
[1721954852399,10.40086232,173.44,173.4,45.0]
[1721954852903,5.7656,173.45,173.39,45.0]
[1721954853818,5.7658,173.44,173.39,45.0]
[1721954854100,5.7669,173.41,173.35,5.7686]
[1721954854395,25.95,173.43,173.36,45.0]
[1721954854607,15.8368,173.47,173.38,5.7673]
[1721954854608,5.7654,173.45,173.38,5.7673]
[1721954854780,16.16562491,173.45,173.39,45.0]
[1721954855176,5.7657,173.44,173.39,45.0]
[1721954855603,5.766,173.43,173.39,45.0]
[1721954855906,5.7666,173.42,173.38,45.0]
[1721954856201,5.7667,173.41,173.37,45.0]
[1721954856506,25.95,173.43,173.33,5.769]
[1721954856689,10.39981983,173.42,173.34,5.7689]
[1721954856882,25.95,173.43,173.34,14.4224]
[1721954857613,25.95,173.46,173.36,14.4203]
[1721954857792,5.7658,173.44,173.37,50.7677]
[1721954857993,5.7662,173.43,173.37,50.7677]
[1721954858209,10.40016842,173.44,173.33,14.423]
[1721954858412,10.40016842,173.44,173.34,5.7687]
[1721954858413,5.7671,173.4,173.34,5.7687]
[1721954858617,5.7674,173.39,173.33,20.1922]
[1721954859302,20.0,173.45,173.3,6.4012]
[1721954859508,10.40013113,173.44,173.31,20.0]
[1721954859710,10.40013113,173.44,173.32,45.0]
[1721954860015,5.766,173.43,173.38,14.4186]
[1721954860185,5.766,173.43,173.39,45.0]
[1721954860701,5.7668,173.41,173.35,20.1899]
[1721954860899,5.7668,173.41,173.36,45.0]
[1721954861106,54.4141,173.45,173.36,45.0]
[1721954861413,5.7674,173.39,173.36,45.0]
[1721954861598,5.7674,173.39,173.34,5.7689]
[1721954862090,5.7674,173.39,173.33,5.7692]
[1721954862297,5.7674,173.39,173.34,45.0]
[1721954862493,5.767,173.4,173.34,50.7689]
[1721954862821,5.767,173.4,173.35,45.0]
[1721954863013,5.7673,173.39,173.35,45.0]
[1721954863211,5.7677,173.38,173.35,45.0]
[1721954863413,5.7677,173.38,173.34,45.0]
[1721954863625,5.7674,173.39,173.34,45.0]
[1721954864703,5.767,173.4,173.34,50.7689]
[1721954865121,10.40140549,173.42,173.34,59.4216]
[1721954865327,5.7666,173.42,173.36,5.768]
[1721954865501,5.7666,173.42,173.37,45.0]
[1721954866406,5.767,173.4,173.37,45.0]
[1721954866607,5.767,173.4,173.36,45.0]
[1721954867129,5.7667,173.41,173.36,45.0]
[1721954867302,25.95,173.43,173.36,45.0]
[1721954867303,5.767,173.4,173.36,45.0]
[1721954867720,25.95,173.43,173.36,45.0]
[1721954867905,25.95,173.43,173.36,5.768]
[1721954868100,25.95,173.43,173.37,45.0]
[1721954868937,5.7667,173.41,173.37,45.0]
[1721954869105,5.7667,173.41,173.36,45.0]
[1721954871429,5.7664,173.42,173.36,50.7682]
[1721954872731,5.7664,173.42,173.37,5.7679]
[1721954873031,5.7655,173.45,173.38,45.0]
[1721954873233,5.7655,173.45,173.38,14.4186]
[1721954873442,21.6015,173.47,173.4,14.4171]
[1721954873722,5.7647,173.47,173.41,5.7663]
[1721954873923,5.7647,173.47,173.42,45.0]
[1721954874131,5.765,173.46,173.42,45.0]
[1721954874312,5.765,173.46,173.41,45.0]
[1721954874635,5.765,173.46,173.41,50.7666]
[1721954875733,8.951644,173.5,173.41,50.7666]
[1721954875734,5.7637,173.5,173.44,5.7656]
[1721954875938,5.7637,173.5,173.45,45.0]
[1721954876327,5.764,173.49,173.45,45.0]
[1721954877042,5.7635,173.51,173.45,45.0]
[1721954877220,5.7635,173.51,173.45,50.7652]
[1721954877549,41.585,173.55,173.47,5.7644]
[1721954877836,41.585,173.55,173.48,45.0]
[1721954877837,5.763,173.52,173.48,45.0]
[1721954878212,5.763,173.52,173.46,5.7649]
[1721954878213,5.763,173.52,173.47,45.0]
[1721954878416,5.7633,173.51,173.47,45.0]
[1721954878637,41.585,173.55,173.46,45.0]
[1721954878839,5.7636,173.51,173.46,45.0]
[1721954879133,5.7629,173.53,173.47,5.7646]
[1721954879310,5.7623,173.54,173.48,65.1746]
[1721954879933,5.762,173.55,173.49,5.7639]
[1721954880125,5.762,173.55,173.5,45.0]
[1721954880330,5.7624,173.54,173.5,45.0]
[1721954880538,5.7627,173.53,173.49,45.0]
[1721954880728,5.763,173.52,173.49,45.0]
[1721954881050,14.4047,173.56,173.49,45.0]
[1721954881336,5.7619,173.56,173.49,50.7638]
[1721954881648,222.46094611,173.58,173.49,45.0]
[1721954881649,31.7111,173.58,173.49,45.0]
[1721954881951,15.1495,173.59,173.52,14.4073]
[1721954882239,20.9102,173.59,173.53,50.7626]
[1721954882446,5.7607,173.59,173.53,50.7626]
[1721954882817,25.95,173.61,173.53,45.0]
[1721954883018,5.7591,173.64,173.53,45.0]
[1721954883433,5.7594,173.63,173.57,14.4028]
[1721954883752,5.7603,173.61,173.54,5.762]
[1721954883927,5.7603,173.61,173.55,45.0]
[1721954884126,40.346,173.66,173.55,45.0]
[1721954884127,40.346,173.66,173.55,50.7619]
[1721954884442,5.7598,173.62,173.57,5.7613]
[1721954884747,5.7598,173.62,173.58,45.0]
[1721954885129,5.7598,173.62,173.56,5.7614]
[1721954885130,5.7598,173.62,173.57,45.0]
[1721954885337,5.76,173.61,173.57,45.0]
[1721954885651,40.346,173.66,173.56,45.0]
[1721954885831,20.0,173.65,173.55,45.0]
[1721954886034,20.0,173.65,173.55,50.7619]
[1721954886238,14.3981,173.64,173.55,45.0]
[1721954886446,5.7604,173.6,173.55,45.0]
[1721954886753,20.0,173.65,173.56,5.7616]
[1721954887048,20.0,173.65,173.57,45.0]
[1721954887845,5.7597,173.62,173.57,45.0]
[1721954888028,5.7597,173.62,173.57,50.7613]
[1721954888229,5.7593,173.64,173.58,5.7607]
[1721954888527,5.7589,173.65,173.59,50.7606]
[1721954888727,14.3947,173.68,173.57,45.0]
[1721954888927,20.0,173.67,173.57,45.0]
[1721954889340,5.7591,173.64,173.58,5.7609]
[1721954889540,5.7591,173.64,173.59,45.0]
[1721954889855,5.7593,173.63,173.59,45.0]
[1721954890156,5.7597,173.62,173.58,45.0]
[1721954890341,5.759,173.64,173.58,14.4021]
[1721954890650,5.7599,173.62,173.59,45.0]
[1721954890843,5.7599,173.62,173.57,45.0]
[1721954891650,25.95,173.66,173.57,59.4034]
[1721954891948,25.95,173.66,173.57,14.4034]
[1721954892328,5.7593,173.64,173.57,14.4034]
[1721954892535,5.7589,173.65,173.57,14.4034]
[1721954892735,25.95,173.66,173.57,14.4034]
[1721954892931,25.95,173.66,173.57,20.1645]
[1721954892932,5.7596,173.63,173.57,20.1645]
[1721954893133,20.0,173.67,173.59,14.4009]
[1721954893335,5.7584,173.66,173.6,50.7602]
[1721954894048,5.7584,173.66,173.61,5.7599]
[1721954894337,5.7584,173.66,173.62,45.0]
[1721954894555,5.7591,173.64,173.62,45.0]
[1721954895236,61.6012,173.63,173.48,6.4907]
[1721954895449,25.95,173.6,173.49,14.4096]
[1721954895659,25.95,173.6,173.48,6.4907]
[1721954895964,5.7607,173.59,173.53,5.7626]
[1721954896139,5.761,173.58,173.52,5.7629]
[1721954896460,25.95,173.6,173.51,14.4077]
[1721954897359,5.7609,173.59,173.53,5.7625]
[1721954897541,5.7609,173.59,173.51,14.4077]
[1721954897542,25.95,173.6,173.51,14.4077]
[1721954897856,5.762,173.55,173.49,5.7637]
[1721954898158,5.762,173.55,173.48,20.9013]
[1721954898159,5.7631,173.52,173.48,6.4907]
[1721954898365,5.7626,173.54,173.48,12.2548]
[1721954898543,25.95,173.6,173.51,5.7632]
[1721954898734,5.7616,173.57,173.51,5.7632]
[1721954899073,5.7623,173.54,173.48,12.2549]
[1721954899248,34.4022,173.59,173.48,6.4907]
[1721954899436,14.4041,173.57,173.47,30.5336]
[1721954900154,5.7627,173.53,173.47,36.298]
[1721954900335,14.4058,173.55,173.44,6.286]
[1721954900732,29.7594,173.55,173.44,6.286]
[1721954900935,5.764,173.49,173.44,6.286]
[1721954901176,5.764,173.49,173.44,12.0516]
[1721954901357,29.7594,173.55,173.44,12.0516]
[1721954901358,5.7637,173.5,173.44,12.0516]
[1721954901738,5.7637,173.5,173.45,5.7653]
[1721954901947,5.7637,173.5,173.44,12.0516]
[1721954902150,5.7637,173.5,173.45,45.0]
[1721954902351,5.7636,173.51,173.45,50.765]
[1721954902565,5.7638,173.5,173.45,45.0]
[1721954903081,5.7632,173.52,173.45,45.0]
[1721954903251,5.7627,173.53,173.45,45.0]
[1721954903769,5.7633,173.51,173.46,5.7649]
[1721954903947,5.7633,173.51,173.47,45.0]
[1721954904646,5.7633,173.51,173.46,45.0]
[1721954905978,25.95,173.53,173.46,45.0]
[1721954906280,25.95,173.53,173.48,5.7643]
[1721954906582,5.7632,173.52,173.49,45.0]
[1721954907581,5.7632,173.52,173.44,6.286]
[1721954907582,5.7637,173.5,173.44,12.0515]
[1721954908279,5.7637,173.5,173.44,5.7655]
[1721954908767,5.7637,173.5,173.45,50.7653]
[1721954908953,5.7637,173.5,173.45,45.0]
[1721954909471,5.764,173.49,173.45,45.0]
[1721954909778,5.7648,173.47,173.39,14.4175]
[1721954909980,5.7648,173.47,173.42,5.7663]
[1721954910183,5.7648,173.47,173.41,5.7666]
[1721954910355,5.7644,173.48,173.41,14.416]
[1721954910658,25.95,173.5,173.41,20.1824]
[1721954910862,16.2582,173.47,173.42,5.7661]
[1721954911262,16.2582,173.47,173.43,5.7659]
[1721954912056,16.2582,173.47,173.44,45.0]
[1721954913696,22.0229,173.47,173.43,45.0]
[1721954913877,22.0229,173.47,173.31,6.1662]
[1721954913878,25.95,173.44,173.31,6.1662]
[1721954914075,25.95,173.44,173.35,14.4214]
[1721954914254,5.7669,173.41,173.35,20.19]
[1721954914460,5.7672,173.4,173.35,14.4214]
[1721954914961,20.0,173.43,173.35,14.4214]
[1721954915458,5.7668,173.41,173.35,14.4214]
[1721954915654,5.767,173.4,173.35,14.4214]
[1721954916383,5.767,173.4,173.36,45.0]
[1721954919075,20.0,173.43,173.36,50.7683]
[1721954919382,25.766,173.43,173.37,5.768]
[1721954919678,16.2582,173.47,173.39,5.767]
[1721954919679,5.7656,173.45,173.39,5.767]
[1721954919881,42.2082,173.47,173.38,45.0]
[1721954919882,5.7657,173.44,173.4,45.0]
[1721954920105,5.766,173.43,173.4,45.0]
[1721954920261,5.7665,173.42,173.4,45.0]
[1721954920976,42.2082,173.47,173.4,45.0]
[1721954920977,5.766,173.43,173.4,45.0]
[1721954921168,5.7657,173.44,173.4,45.0]
[1721954921361,5.7657,173.44,173.39,50.7672]
[1721954922066,5.766,173.43,173.39,45.0]
[1721954922398,5.7657,173.44,173.39,45.0]
[1721954922566,5.765,173.46,173.39,20.8875]
[1721954922766,5.765,173.46,173.4,45.0]
[1721954922971,5.7649,173.47,173.41,5.7664]
[1721954923182,25.95,173.5,173.42,45.0]
[1721954923367,25.95,173.5,173.4,45.0]
[1721954923570,5.7647,173.47,173.41,5.7666]
[1721954923774,5.7647,173.47,173.42,45.0]
[1721954923984,5.7651,173.46,173.42,45.0]
[1721954924287,5.7653,173.45,173.41,45.0]
[1721954925373,5.7656,173.44,173.41,45.0]
[1721954925680,5.7654,173.45,173.4,45.0]
[1721954925888,5.7654,173.45,173.4,50.7669]
[1721954926073,5.765,173.46,173.41,5.7666]
[1721954926274,5.765,173.46,173.42,45.0]
[1721954926774,5.7654,173.45,173.42,45.0]
[1721954926975,5.765,173.46,173.41,45.0]
[1721954927285,5.7639,173.5,173.41,45.0]
[1721954927499,31.7132,173.52,173.44,14.4135]
[1721954927800,31.7131,173.52,173.47,14.4115]
[1721954928010,31.7131,173.52,173.48,45.0]
[1721954928504,5.7633,173.51,173.48,45.0]
[1721954928673,5.7633,173.51,173.47,45.0]
[1721954928973,5.7633,173.51,173.46,45.0]
[1721954930291,5.7638,173.5,173.46,45.0]
[1721954930600,5.7638,173.5,173.45,45.0]
[1721954931189,5.7633,173.51,173.45,45.0]
[1721954931391,25.95,173.52,173.45,45.0]
[1721954931600,14.4092,173.5,173.45,45.0]
[1721954932093,14.4092,173.5,173.39,5.7673]
[1721954932299,5.7649,173.47,173.41,5.7666]
[1721954932496,5.7649,173.47,173.42,45.0]
[1721954932677,25.95,173.52,173.43,5.7658]
[1721954932989,5.7641,173.49,173.44,45.0]
[1721954933578,5.7643,173.48,173.44,45.0]
[1721954934701,25.95,173.52,173.44,45.0]
[1721954934897,5.7641,173.49,173.43,45.0]
[1721954935377,5.7637,173.5,173.44,5.7656]
[1721954935573,5.7637,173.5,173.45,50.7653]
[1721954935800,5.7637,173.5,173.46,45.0]
[1721954936402,25.95,173.52,173.46,50.7649]
[1721954936701,256.6,173.56,173.46,51.3304]
[1721954937199,5.7607,173.59,173.51,14.4078]
[1721954937502,5.7607,173.59,173.54,5.7623]